bitfinex-derivatives/quotes_ETHF0:USTF0_20260316
["timestamp","ask_amount","ask_price","bid_price","bid_amount"]
[1773689723998,6.8942149,2333.9,2332.9,7.69317746]
[1773689724191,6.8942149,2333.9,2333.0,10.374]
[1773689725195,6.8942149,2333.9,2333.1,7.68815746]
[1773689726296,6.8942149,2333.9,2333.1,10.381]
[1773689727099,6.8942149,2333.9,2333.2,7.68815746]
[1773689728302,0.00373761,2334.1,2333.4,7.68815746]
[1773689728496,7.74824764,2334.1,2333.4,7.68815746]
[1773689728695,7.74451003,2334.3,2333.4,7.68815746]
[1773689729596,7.74804205,2334.3,2333.6,7.68815746]
[1773689730600,7.96251747,2334.3,2333.0,7.68815746]
[1773689730801,7.96251747,2334.3,2333.2,7.68815746]
[1773689731397,5.23927749,2334.2,2333.2,7.68815746]
[1773689731602,7.74451003,2334.1,2333.3,18.08415746]
[1773689732399,7.74451003,2334.1,2333.3,7.68815746]
[1773689732598,7.74451003,2334.1,2333.3,18.08615746]
[1773689732798,7.74451003,2334.1,2333.1,7.68815746]
[1773689733305,7.74451003,2333.9,2333.2,18.08715746]
[1773689733899,7.74451003,2333.9,2333.2,18.08815746]
[1773689734996,7.74451003,2333.9,2333.2,7.68815746]
[1773689735200,7.74451003,2333.9,2333.3,7.68815746]
[1773689737701,7.74451003,2333.9,2332.9,0.00502]
[1773689738003,7.74451003,2333.9,2333.1,7.68815746]
[1773689738805,7.74451003,2333.9,2333.1,18.09915746]
[1773689739201,7.95343071,2333.9,2333.2,7.68815746]
[1773689739704,7.74804205,2334.3,2333.2,7.90243746]
[1773689740104,7.74804205,2334.3,2333.4,7.68815746]
[1773689741304,7.74804205,2334.3,2333.5,18.10315746]
[1773689741505,7.74804205,2334.3,2333.6,7.68815746]
[1773689742006,7.96328858,2334.3,2333.6,7.68815746]
[1773689742202,7.96328858,2334.3,2330.8,7.68815746]
[1773689742203,7.74451003,2333.5,2330.8,7.68815746]
[1773689742405,6.68996994,2333.7,2330.8,7.68815746]
[1773689742406,7.74451003,2332.5,2330.8,7.68815746]
[1773689742703,7.74451003,2332.0,2330.8,7.68815746]
[1773689742911,7.74451003,2331.8,2330.8,7.68815746]
[1773689743207,7.74451003,2331.6,2330.8,7.69363802]
[1773689744507,7.74451003,2331.6,2330.8,0.00548056]
[1773689744703,7.74451003,2331.6,2330.8,7.69363802]
[1773689745203,7.74451003,2331.6,2330.8,0.00548056]
[1773689745404,7.74451003,2331.6,2330.4,7.68815746]
[1773689745603,7.74451003,2331.4,2330.4,7.68815746]
[1773689746003,7.74451003,2331.4,2329.4,7.68815746]
[1773689746304,7.74451003,2331.2,2329.6,7.68815746]
[1773689747812,7.74451003,2331.2,2329.8,7.68815746]
[1773689748708,7.74451003,2331.2,2330.0,7.68815746]
[1773689748909,7.74451003,2331.2,2330.1,7.68815746]
[1773689749308,7.74451003,2331.2,2329.8,7.68815746]
[1773689750408,7.95712584,2331.2,2329.8,7.68815746]
[1773689755714,0.21261581,2331.2,2330.4,7.77213719]
[1773689756010,7.67518162,2331.7,2330.4,7.77213719]
[1773689756318,0.00483725,2331.8,2330.8,7.77213719]
[1773689756510,0.00483725,2331.8,2331.0,7.77213719]
[1773689757117,0.21476136,2331.8,2331.0,7.77213719]
[1773689757518,0.21476136,2331.8,2331.0,18.13613719]
[1773689757718,0.21476136,2331.8,2331.1,7.77213719]
[1773689757920,7.88994298,2331.8,2331.1,7.77690881]
[1773689759918,7.88994298,2331.8,2331.1,0.00477162]
[1773689760818,0.21476136,2331.8,2331.2,7.77213719]
[1773689761121,7.67518162,2332.1,2331.2,7.77213719]
[1773689761922,7.67987006,2332.1,2331.2,7.77213719]
[1773689762620,7.67987006,2332.1,2331.1,0.00477162]
[1773689763119,7.67987006,2332.1,2331.1,7.77690881]
[1773689763621,0.00468844,2332.1,2331.1,7.99137881]
[1773689763817,0.21821494,2332.2,2331.3,7.98659719]
[1773689764020,11.16002779,2334.7,2331.3,7.98659719]
[1773689764021,7.67518162,2332.7,2331.8,7.77213719]
[1773689764222,7.67518162,2333.5,2332.0,7.77213719]
[1773689764423,7.67518162,2333.3,2332.0,7.77213719]
[1773689765018,7.67893201,2333.3,2332.0,7.77213719]
[1773689766120,5.72778802,2333.2,2332.0,7.77213719]
[1773689766324,7.67518162,2333.1,2332.0,7.77213719]
[1773689767226,5.73117992,2333.0,2331.4,7.77213719]
[1773689767424,7.67518162,2332.9,2331.4,7.77213719]
[1773689767628,7.67518162,2332.7,2331.4,7.77213719]
[1773689767932,7.67518162,2333.1,2331.6,7.77213719]
[1773689769528,7.89146018,2333.1,2331.8,7.77213719]
[1773689770323,7.89146018,2333.1,2331.9,7.77213719]
[1773689770927,7.67518162,2332.9,2331.9,7.77213719]
[1773689771227,5.75129229,2332.8,2331.9,7.77213719]
[1773689771427,7.67518162,2332.7,2331.9,7.77213719]
[1773689772229,5.75914896,2332.6,2331.9,7.77213719]
[1773689772425,7.67518162,2332.6,2331.9,7.77213719]
[1773689774930,7.67518162,2333.0,2331.9,7.77213719]
[1773689775131,5.7566118,2332.9,2331.9,7.77213719]
[1773689775333,7.67518162,2332.8,2331.9,7.77213719]
[1773689776031,0.21627856,2333.1,2332.1,7.77213719]
[1773689776229,0.21627856,2333.1,2331.8,10.408]
[1773689776230,7.67893201,2333.3,2332.3,7.77213719]
[1773689776532,0.00375039,2333.3,2332.5,7.77213719]
[1773689776931,7.67893201,2333.3,2332.5,7.77213719]
[1773689778327,7.88899929,2333.3,2332.5,7.77213719]
[1773689782136,13.43510177,2333.2,2332.5,7.77213719]
[1773689782335,7.67518162,2333.2,2332.5,7.77213719]
[1773689783344,7.88315142,2333.0,2332.0,8.15417158]
[1773689783642,7.88315142,2332.8,2332.0,8.15417158]
[1773689785242,13.66411344,2332.7,2332.0,8.15417158]
[1773689785548,7.88315142,2332.7,2332.0,8.15417158]
[1773689786245,5.7849051,2332.6,2332.0,8.15417158]
[1773689787248,13.66805652,2332.6,2332.0,8.15417158]
[1773689787547,7.88315142,2332.6,2332.0,8.15417158]
[1773689787743,5.78663453,2332.5,2332.0,8.15417158]
[1773689788145,7.88315142,2332.6,2332.0,8.15417158]
[1773689788748,7.88315142,2333.0,2332.0,8.15417158]
[1773689788949,7.88315142,2332.8,2332.0,8.15417158]
[1773689789247,5.78885215,2332.7,2332.0,8.15417158]
[1773689790349,13.67200357,2332.7,2332.0,8.15417158]
[1773689790648,5.37273916,2333.3,2332.0,8.15417158]
[1773689790649,7.88315142,2332.9,2332.0,8.15417158]
[1773689791437,7.88315142,2332.9,2332.1,8.15417158]
[1773689791639,7.88315142,2332.7,2331.4,8.15417158]
[1773689791839,7.88315142,2332.4,2331.4,8.15417158]
[1773689792044,7.88315142,2332.3,2331.4,8.15417158]
[1773689792750,7.88315142,2332.5,2331.4,8.15417158]
[1773689793146,7.88315142,2332.4,2331.4,8.15417158]
[1773689794048,7.88315142,2332.3,2331.4,8.15417158]
[1773689794250,7.88315142,2332.3,2331.5,8.15417158]
[1773689801249,7.88315142,2332.3,2331.6,8.15417158]
[1773689802647,7.88315142,2332.1,2331.6,8.15417158]
[1773689803856,7.88315142,2332.3,2331.6,8.15417158]
[1773689804151,0.2190108,2332.4,2331.8,8.15417158]
[1773689804356,11.46256632,2332.8,2331.8,8.15417158]
[1773689804558,7.88315142,2332.8,2332.0,8.15417158]
[1773689804748,7.88315142,2332.6,2331.5,8.15417158]
[1773689805960,7.88315142,2332.6,2331.7,8.15417158]
[1773689806154,7.88315142,2332.6,2331.2,8.15417158]
[1773689806356,7.88315142,2332.6,2331.6,8.15417158]
[1773689811259,7.88315142,2332.6,2331.7,8.15417158]
[1773689812061,7.88315142,2332.5,2331.7,8.15417158]
[1773689815966,11.38581263,2332.7,2332.1,8.37357363]
[1773689816162,8.01789991,2332.8,2331.2,8.37357363]
[1773689816362,7.80639773,2332.6,2331.4,8.37357363]
[1773689816568,7.80639773,2332.4,2331.4,8.37357363]
[1773689816769,7.80639773,2332.2,2331.4,8.37357363]
[1773689816966,7.80639773,2332.7,2331.4,8.37357363]
[1773689817164,13.26950726,2332.6,2331.6,8.37357363]
[1773689817365,13.26950726,2332.5,2331.6,8.37357363]
[1773689817570,7.80639773,2332.5,2331.6,8.37357363]
[1773689817968,7.80639773,2332.5,2331.8,8.37357363]
[1773689820978,7.80639773,2332.3,2331.5,10.433]
[1773689821178,7.80639773,2332.3,2331.6,8.37357363]
[1773689821574,7.80639773,2332.3,2331.7,8.37357363]
[1773689822873,5.45737007,2332.2,2331.7,8.37357363]
[1773689823073,7.80639773,2332.1,2331.7,8.37357363]
[1773689824574,0.21129356,2332.5,2331.7,8.37357363]
[1773689824774,7.80639773,2333.1,2331.9,8.37357363]
[1773689824974,7.80639773,2332.9,2332.0,0.21439]
[1773689825178,7.80639773,2332.9,2332.2,8.37357363]
[1773689825474,7.80639773,2332.9,2332.3,8.37357363]
[1773689826181,5.29301496,2332.8,2332.3,8.37357363]
[1773689826384,7.80639773,2332.7,2332.3,8.37357363]
[1773689827178,8.02355233,2333.1,2332.3,8.37357363]
[1773689827377,5.29172171,2333.0,2332.3,8.37357363]
[1773689827878,13.09811944,2333.0,2332.3,8.37357363]
[1773689828176,5.29172171,2332.9,2332.3,8.37357363]
[1773689828580,7.80639773,2332.9,2332.3,8.37357363]
[1773689829480,7.80639773,2332.9,2332.0,8.37357363]
[1773689829677,7.80639773,2332.7,2332.0,8.37357363]
[1773689830580,0.00375039,2333.3,2332.5,0.21435]
[1773689830778,0.21722494,2333.3,2332.7,8.37357363]
[1773689830978,0.21722494,2333.3,2332.7,8.58790363]
[1773689831177,7.80639773,2333.6,2332.7,8.58790363]
[1773689831382,7.80639773,2333.9,2332.7,8.58790363]
[1773689831584,5.28362073,2333.8,2332.7,8.58790363]
[1773689831882,7.80639773,2333.7,2332.7,8.58790363]
[1773689832284,7.80945566,2333.7,2332.7,8.58790363]
[1773689833684,7.80945566,2333.7,2332.9,8.37357363]
[1773689833880,7.80945566,2333.7,2332.9,8.37825227]
[1773689839087,7.80945566,2333.7,2333.0,18.83257363]
[1773689839582,7.80945566,2333.7,2333.0,8.37357363]
[1773689839791,7.80945566,2333.7,2333.1,18.83357363]
[1773689841090,7.80945566,2333.7,2333.2,8.37357363]
[1773689842783,0.00305793,2333.7,2333.2,8.37357363]
[1773689843392,7.86646739,2333.7,2333.2,8.37357363]
[1773689846685,0.00305793,2333.7,2333.2,8.37357363]
[1773689846890,7.86646739,2333.7,2333.2,8.37357363]
[1773689848498,7.86646739,2333.7,2332.9,0.00467864]
[1773689848699,7.86340946,2333.5,2332.9,7.7114088]
[1773689849193,0.21759437,2333.9,2332.9,7.7114088]
[1773689849399,7.86340946,2334.3,2333.6,7.70673016]
[1773689849597,8.07773494,2334.3,2333.8,7.70673016]
[1773689849797,8.07773494,2334.3,2333.1,7.70673016]
[1773689849993,8.07773494,2334.3,2333.3,7.70673016]
[1773689850494,8.08321687,2334.3,2333.5,7.70673016]
[1773689853195,8.08321687,2334.3,2333.4,10.497]
[1773689853403,7.86340946,2334.1,2333.2,7.92101016]
[1773689853601,7.86340946,2334.1,2333.2,18.41801016]
[1773689853792,7.86340946,2334.1,2333.3,7.70673016]
[1773689854201,5.27810175,2334.0,2333.3,7.70673016]
[1773689854402,7.86340946,2333.9,2333.3,7.70673016]
[1773689854993,7.86340946,2333.9,2333.2,10.501]
[1773689855197,7.86340946,2333.9,2333.1,7.70673016]
[1773689855392,7.86340946,2333.9,2332.9,0.00467864]
[1773689855393,7.86340946,2333.9,2332.9,7.7114088]
[1773689855601,7.86340946,2333.7,2333.0,10.502]
[1773689855792,7.86340946,2333.7,2332.9,7.7114088]
[1773689857398,7.86340946,2334.0,2333.1,7.70673016]
[1773689857597,7.86340946,2333.8,2333.1,7.70673016]
[1773689857800,7.86340946,2333.8,2333.2,7.70673016]
[1773689859203,5.27875479,2333.7,2333.2,7.70673016]
[1773689859404,7.86340946,2333.6,2333.2,7.70673016]
[1773689861105,7.86340946,2333.9,2333.2,7.70673016]
[1773689861306,5.28351033,2333.8,2333.2,7.70673016]
[1773689862006,13.14691979,2333.8,2333.2,7.70673016]
[1773689862206,0.212079,2333.9,2333.2,7.70673016]
[1773689862407,5.28308446,2333.9,2333.4,7.70673016]
[1773689862905,7.86340946,2334.0,2333.4,7.70673016]
[1773689863105,5.272864,2333.9,2333.4,7.70673016]
[1773689863504,13.13627346,2333.9,2333.4,7.70673016]
[1773689863704,7.86340946,2333.9,2333.4,7.70673016]
[1773689865006,7.86340946,2334.2,2333.4,7.70673016]
[1773689865206,5.27251597,2334.1,2333.4,7.70673016]
[1773689865507,7.86340946,2334.0,2333.4,7.70673016]
[1773689865703,13.13592543,2333.9,2333.4,7.70673016]
[1773689866006,7.86340946,2333.9,2333.4,7.70673016]
[1773689866206,0.21179492,2334.2,2333.4,7.70673016]
[1773689866407,7.86340946,2334.1,2333.4,7.70673016]
[1773689866607,5.27245389,2334.0,2333.4,7.70673016]
[1773689866809,13.13586335,2334.0,2333.4,7.70673016]
[1773689867008,13.13586335,2333.9,2333.4,7.70673016]
[1773689867210,7.86340946,2333.9,2333.4,7.70673016]
[1773689868412,7.86340946,2333.9,2333.3,0.21427]
[1773689869010,7.86340946,2333.9,2333.2,7.70673016]
[1773689869211,7.86340946,2333.9,2333.2,18.23973016]
[1773689870010,7.86340946,2333.9,2333.3,7.70673016]
[1773689870214,7.86340946,2333.7,2333.3,7.70673016]
[1773689871606,7.86340946,2333.7,2333.0,7.70673016]
[1773689871807,7.86340946,2333.5,2332.5,7.70673016]
[1773689872012,7.86340946,2333.3,2332.6,7.70673016]
[1773689872906,7.86340946,2333.3,2332.6,7.7115444]
[1773689873107,0.21722704,2333.7,2331.9,7.93645486]
[1773689873108,8.0498383,2333.1,2331.9,7.93645486]
[1773689873309,8.0498383,2332.9,2331.9,7.93645486]
[1773689873505,8.0498383,2332.7,2332.0,7.93645486]
[1773689874205,8.0498383,2332.7,2332.0,7.94002841]
[1773689877007,8.0498383,2332.7,2332.0,0.00357355]
[1773689878509,8.0498383,2332.7,2332.0,8.20848831]
[1773689879609,8.07997592,2333.4,2332.4,8.20491476]
[1773689879816,8.29007705,2333.4,2332.6,8.20491476]
[1773689882512,8.07997592,2333.8,2332.8,8.20491476]
[1773689883516,8.07997592,2333.8,2333.0,8.20491476]
[1773689883711,8.29642548,2333.8,2333.0,8.20491476]
[1773689887012,8.29642548,2333.8,2332.9,0.21431]
[1773689887315,8.07997592,2333.6,2332.7,8.20491476]
[1773689889414,8.07997592,2333.4,2332.5,8.20491476]
[1773689892620,8.07997592,2333.4,2332.4,0.21435]
[1773689892821,8.07997592,2333.2,2332.4,8.41926476]
[1773689893121,8.07997592,2333.2,2332.4,8.20491476]
[1773689893324,8.07997592,2333.0,2332.1,8.20491476]
[1773689893524,5.2943376,2332.9,2332.1,8.20491476]
[1773689893724,8.07997592,2332.8,2332.1,8.20491476]
[1773689896826,8.07997592,2332.8,2332.0,8.20848831]
[1773689897023,8.07997592,2333.1,2332.2,8.20491476]
[1773689897221,8.07997592,2333.1,2332.4,8.20491476]
[1773689897621,11.718,2333.5,2332.6,8.20491476]
[1773689897622,8.07997592,2333.5,2332.6,8.20491476]
[1773689898426,8.07997592,2333.5,2332.8,8.20491476]
[1773689900427,8.07997592,2333.3,2332.6,8.20491476]
[1773689901122,8.07997592,2333.3,2332.3,8.20491476]
[1773689901319,8.07997592,2333.1,2332.3,8.20491476]
[1773689903827,7.67539773,2332.9,2332.3,8.20491476]
[1773689904926,7.67539773,2332.9,2332.2,0.21437]
[1773689905433,7.67539773,2332.7,2332.2,8.31064439]
[1773689907934,7.67539773,2333.1,2332.2,8.31064439]
[1773689908138,7.67539773,2332.9,2332.2,8.31064439]
[1773689911138,7.67539773,2332.9,2332.2,0.21437]
[1773689911343,5.30475503,2332.8,2332.0,8.09984794]
[1773689911535,7.67539773,2332.7,2332.0,8.09984794]
[1773689912637,7.67539773,2332.5,2331.8,8.09627439]
[1773689913745,7.67847791,2332.5,2331.8,8.09960414]
[1773689915843,0.00308018,2332.5,2331.8,8.09960414]
[1773689916048,0.00308018,2332.5,2332.0,8.09627439]
[1773689916847,7.67847791,2332.5,2332.0,8.09627439]
[1773689917848,0.00308018,2332.5,2332.0,8.09627439]
[1773689918145,0.21311275,2332.5,2332.0,8.09627439]
[1773689918544,7.67539773,2332.8,2332.2,8.09627439]
[1773689919350,7.67539773,2333.1,2332.2,8.09627439]
[1773689919646,7.67539773,2332.9,2332.2,8.09627439]
[1773689923744,5.31417291,2332.8,2332.1,7.92312734]
[1773689923945,8.05436507,2332.7,2332.1,7.92312734]
[1773689925347,8.05436507,2333.0,2332.1,7.92312734]
[1773689925549,5.31389502,2332.9,2332.1,7.92312734]
[1773689925748,8.05436507,2332.8,2332.1,7.92312734]
[1773689926550,0.22200239,2333.1,2332.8,7.70874734]
[1773689926551,0.00155312,2333.1,2332.8,7.70874734]
[1773689926951,8.05591819,2333.1,2332.7,7.92307734]
[1773689927150,8.05591819,2333.1,2332.7,0.21433]
[1773689929155,8.05591819,2333.1,2332.7,7.92307734]
[1773689929345,11.63459379,2333.7,2332.7,7.92307734]
[1773689929549,8.05436507,2333.5,2332.7,7.92307734]
[1773689930455,8.05842242,2333.5,2332.7,7.92307734]
[1773689931856,0.00405735,2333.5,2332.7,7.92307734]
[1773689932450,0.21838669,2333.7,2332.9,7.87972895]
[1773689932649,8.10471269,2333.8,2332.9,7.87972895]
[1773689932847,8.10471269,2333.8,2333.1,7.66541895]
[1773689933047,3.58022872,2334.2,2333.2,7.87969895]
[1773689933048,8.10471269,2334.2,2333.2,7.87969895]
[1773689933351,3.58022872,2334.5,2333.1,10.629]
[1773689933352,0.21055935,2334.5,2333.9,7.66541895]
[1773689933550,8.10471269,2334.6,2333.9,7.66541895]
[1773689934457,8.10806318,2334.6,2333.9,7.67021522]
[1773689934757,11.73,2335.0,2333.9,7.67021522]
[1773689934758,8.10471269,2335.0,2334.1,7.66541895]
[1773689935755,8.10975239,2335.0,2334.1,7.66541895]
[1773689936152,8.32163675,2335.0,2334.1,7.66541895]
[1773689938357,11.732,2335.4,2333.9,0.00479627]
[1773689938358,7.44480274,2335.4,2334.3,7.8275133]
[1773689938550,7.66251704,2335.4,2334.3,7.8275133]
[1773689939160,7.66251704,2335.4,2334.2,0.21419]
[1773689939161,7.66251704,2335.4,2334.5,7.8275133]
[1773689939361,7.66656337,2335.4,2334.5,7.8275133]
[1773689940552,7.66656337,2335.4,2334.2,0.21419]
[1773689940753,7.94484204,2335.4,2334.3,7.8275133]
[1773689940958,7.94484204,2335.4,2334.0,7.8275133]
[1773689941757,7.44480274,2335.1,2334.0,7.8275133]
[1773689945864,1.80045659,2334.4,2333.1,7.8275133]
[1773689946056,7.44480274,2334.3,2333.1,7.8275133]
[1773689946863,7.44480274,2334.3,2333.1,7.83095851]
[1773689950466,7.44480274,2334.3,2333.1,8.04524851]
[1773689952168,7.66086322,2334.3,2333.1,8.04524851]
[1773689952872,7.66086322,2334.3,2333.3,7.8275133]
[1773689953866,7.66086322,2334.3,2333.5,7.8275133]
[1773689959774,7.44480274,2334.1,2333.2,7.8275133]
[1773689959974,7.44480274,2333.9,2333.2,7.8275133]
[1773689962574,3.7962892,2334.3,2333.2,8.0417833]
[1773689962775,7.63891169,2334.1,2333.2,8.0417833]
[1773689964075,5.28690992,2334.0,2333.2,8.0417833]
[1773689964273,7.63891169,2333.9,2333.2,8.0417833]
[1773689969984,7.85389518,2333.9,2333.2,8.0417833]
[1773689970581,3.58022872,2334.3,2333.7,7.49144558]
[1773689970775,5.29442625,2334.2,2333.7,7.49144558]
[1773689970975,12.93333794,2334.2,2333.7,7.49144558]
[1773689971174,7.63891169,2334.2,2333.7,7.49144558]
[1773689972286,12.93674886,2334.1,2333.7,7.49144558]
[1773689972585,7.63891169,2334.1,2333.7,7.49144558]
[1773689973381,7.63891169,2334.5,2334.1,7.49144558]
[1773689973585,7.63891169,2334.8,2334.1,7.49144558]
[1773689973887,7.63891169,2334.9,2334.3,7.49144558]
[1773689974276,5.29864503,2334.8,2334.3,7.49144558]
[1773689974483,12.93755672,2334.8,2334.3,7.49144558]
[1773689974678,7.63891169,2334.8,2334.3,7.49144558]
[1773689979186,7.63891169,2335.3,2334.5,7.49144558]
[1773689979386,7.63891169,2335.1,2334.5,7.49144558]
[1773689979789,0.22221957,2335.4,2334.7,7.49144558]
[1773689979982,7.86113126,2335.4,2334.9,7.49144558]
[1773689980285,7.86113126,2335.4,2334.9,7.49586299]
[1773689980681,7.63891169,2336.0,2335.1,7.49144558]
[1773689981087,7.63891169,2336.0,2335.2,7.49144558]
[1773689981884,7.64410293,2336.0,2335.2,7.49144558]
[1773689982786,7.63891169,2336.4,2335.6,7.49144558]
[1773689983186,7.63891169,2336.4,2335.8,7.49144558]
[1773689983783,7.64299424,2336.4,2335.6,7.49144558]
[1773689984085,7.64299424,2336.4,2335.7,7.49144558]
[1773689986088,7.85539381,2336.4,2335.5,7.49144558]
[1773689986287,7.85539381,2336.4,2335.3,7.49144558]
[1773689988785,7.85539381,2336.4,2335.5,7.49144558]
[1773689991090,7.85539381,2336.4,2335.1,7.49144558]
[1773689991589,7.85539381,2336.4,2335.5,7.49144558]
[1773689991787,7.63891169,2337.0,2336.1,7.49144558]
[1773689992691,7.91756939,2337.0,2336.1,7.49144558]
[1773689993991,8.13064169,2337.0,2336.1,7.49144558]
[1773689994786,7.85663845,2337.0,2336.1,7.49144558]
[1773689995798,7.03292819,2337.6,2336.3,7.46740188]
[1773689996001,7.03292819,2337.6,2336.9,7.46740188]
[1773689996395,7.03292819,2337.6,2336.5,7.46740188]
[1773689996692,7.03292819,2337.6,2336.5,7.47295518]
[1773689996893,7.31550383,2337.6,2336.5,7.47295518]
[1773689997297,7.52432962,2337.6,2336.5,0.0055533]
[1773690000196,5.23847034,2337.5,2336.5,0.0055533]
[1773690000394,7.03292819,2337.4,2336.5,0.0055533]
[1773690000600,7.03292819,2337.4,2336.2,7.46740188]
[1773690000799,5.23862698,2337.3,2336.2,7.46740188]
[1773690001003,7.03292819,2337.2,2336.2,7.46740188]
[1773690001197,7.03292819,2337.2,2335.8,7.46740188]
[1773690001402,5.2417044,2337.1,2335.2,7.46740188]
[1773690001702,7.03292819,2337.0,2335.2,7.47205282]
[1773690001901,7.03292819,2336.8,2335.4,7.46740188]
[1773690002102,5.24338989,2336.7,2335.4,7.46740188]
[1773690002306,7.03292819,2336.6,2335.4,7.46740188]
[1773690002500,7.03292819,2336.4,2335.4,7.46740188]
[1773690007506,7.03292819,2336.2,2335.4,7.46740188]
[1773690012606,7.03292819,2336.2,2335.6,7.46740188]
[1773690012811,7.24314135,2336.4,2335.6,7.46740188]
[1773690018517,7.24314135,2336.4,2335.8,7.46740188]
[1773690018713,0.21611652,2336.7,2336.0,7.46740188]
[1773690018916,5.27575697,2336.7,2336.2,7.46740188]
[1773690019118,7.03292819,2337.1,2336.2,7.46740188]
[1773690019418,7.03292819,2336.9,2336.2,7.46740188]
[1773690020414,7.03292819,2336.9,2336.4,7.46740188]
[1773690021111,7.03292819,2336.7,2335.7,7.46740188]
[1773690021313,7.03292819,2336.5,2335.7,7.46740188]
[1773690023713,7.15114692,2336.7,2335.7,7.68144188]
[1773690024020,5.36898877,2337.0,2335.7,7.68144188]
[1773690024021,12.42790874,2336.6,2335.7,7.68144188]
[1773690024219,7.15114692,2336.4,2335.8,7.51209957]
[1773690029528,7.15114692,2336.6,2335.8,7.51209957]
[1773690030021,7.15114692,2336.8,2336.0,7.51209957]
[1773690030327,7.15114692,2337.0,2336.0,7.51209957]
[1773690030531,12.43544796,2336.9,2336.0,7.51209957]
[1773690030727,7.15114692,2336.9,2336.0,7.51209957]
[1773690031528,7.15114692,2336.9,2336.2,7.51209957]
[1773690031728,7.15114692,2336.9,2336.3,7.51209957]
[1773690035129,7.15114692,2336.9,2336.1,7.72611957]
[1773690035431,0.21353077,2337.0,2335.8,7.51209957]
[1773690035432,7.15114692,2336.7,2335.8,7.51209957]
[1773690035629,7.15114692,2336.7,2336.0,7.51209957]
[1773690036831,5.28278425,2336.6,2336.0,7.51209957]
[1773690037131,7.15114692,2336.5,2336.0,7.51209957]
[1773690037328,7.15114692,2336.5,2335.9,7.72612957]
[1773690040333,7.15114692,2336.3,2335.5,18.21309957]
[1773690040534,7.15114692,2336.3,2335.6,7.51209957]
[1773690040832,7.15114692,2336.6,2335.8,7.51209957]
[1773690041036,12.43676566,2336.5,2335.8,7.51209957]
[1773690041234,5.28561874,2336.4,2335.8,7.51209957]
[1773690041731,12.43676566,2336.4,2335.8,7.51209957]
[1773690041929,7.15114692,2336.4,2335.8,7.51209957]
[1773690046236,5.28812471,2336.3,2335.9,7.51209957]
[1773690046536,12.43927163,2336.3,2335.9,7.51209957]
[1773690046739,7.15114692,2336.3,2335.9,7.51209957]
[1773690051539,7.15114692,2336.3,2335.8,18.23209957]
[1773690051738,7.15114692,2336.3,2335.9,7.51209957]
[1773690053438,6.68996994,2337.1,2335.9,7.51209957]
[1773690053439,7.06332806,2336.5,2336.0,17.60872124]
[1773690054033,7.06332806,2336.7,2336.1,6.88472124]
[1773690054246,7.06332806,2336.7,2336.1,8.02512748]
[1773690054439,7.06332806,2336.7,2336.1,6.88472124]
[1773690055439,7.06332806,2336.7,2336.3,7.07439056]
[1773690060244,7.36483141,2337.2,2336.5,8.2147968]
[1773690060446,12.64096086,2337.1,2336.5,7.07439056]
[1773690060645,7.36483141,2337.1,2336.6,7.07439056]
[1773690061047,7.36483141,2337.4,2337.0,7.07439056]
[1773690061248,7.36873863,2337.6,2337.0,7.07809026]
[1773690061546,8.50914487,2337.6,2337.0,0.0036997]
[1773690062049,7.36483141,2337.1,2336.5,10.743]
[1773690062451,7.36483141,2337.1,2336.5,17.81739056]
[1773690062951,7.36483141,2337.1,2336.5,17.82059915]
[1773690065646,7.36483141,2337.5,2336.6,7.28836056]
[1773690072053,7.36483141,2337.5,2336.7,10.768]
[1773690072257,7.36483141,2337.3,2336.5,0.00320859]
[1773690073450,7.36483141,2337.3,2336.5,7.07759915]
[1773690073656,7.36873863,2337.6,2336.5,7.29156915]
[1773690074057,7.36873863,2337.6,2336.7,7.07439056]
[1773690074253,7.36873863,2337.6,2336.8,0.21395]
[1773690074453,7.36873863,2337.6,2336.9,7.07439056]
[1773690079563,7.36873863,2337.6,2336.8,18.07034056]
[1773690079860,7.36873863,2337.6,2336.8,7.28834056]
[1773690081462,0.21372347,2337.7,2336.8,7.28834056]
[1773690081654,7.36483141,2337.7,2336.8,7.28834056]
[1773690082560,7.36890667,2337.7,2336.8,7.28834056]
[1773690085562,7.36890667,2337.7,2337.0,6.9971054]
[1773690086465,7.00370731,2337.5,2336.5,0.00320859]
[1773690086658,7.00370731,2337.3,2336.5,7.00031399]
[1773690086968,7.00370731,2337.3,2336.7,6.9971054]
[1773690087461,7.00370731,2337.6,2336.8,10.796]
[1773690087667,7.00370731,2337.6,2336.9,6.9971054]
[1773690088063,5.27551136,2337.5,2336.9,6.9971054]
[1773690088367,0.00407526,2337.7,2336.9,6.9971054]
[1773690088767,7.00778257,2337.7,2336.9,6.9971054]
[1773690090364,10.57792011,2338.1,2337.2,0.21392]
[1773690090567,7.00370731,2338.5,2337.6,7.2109854]
[1773690090867,7.00370731,2339.2,2338.4,6.9971054]
[1773690091258,7.00917695,2339.2,2338.4,7.00200688]
[1773690091765,7.22418622,2339.2,2338.4,7.00200688]
[1773690093069,7.22418622,2339.2,2338.4,0.00490148]
[1773690093270,7.22418622,2339.2,2338.0,17.8041054]
[1773690093471,7.22418622,2339.2,2338.0,6.9971054]
[1773690094159,7.22418622,2339.2,2338.0,7.00185727]
[1773690094867,7.22418622,2339.2,2338.0,0.00475187]
[1773690095463,7.00370731,2339.0,2337.4,6.9971054]
[1773690095667,7.00370731,2338.8,2337.0,6.9971054]
[1773690095867,7.45028895,2338.7,2337.0,6.9971054]
[1773690096066,7.00370731,2338.5,2337.0,6.9971054]
[1773690096462,7.00370731,2338.5,2337.0,7.00028861]
[1773690100275,7.00370731,2338.3,2337.0,7.00028861]
[1773690100472,7.00370731,2338.1,2336.1,6.9971054]
[1773690100672,7.00370731,2337.9,2336.1,6.9971054]
[1773690100873,7.00370731,2337.7,2336.1,6.9971054]
[1773690101471,5.0067611,2337.6,2336.1,7.00247442]
[1773690101671,7.00370731,2337.5,2336.5,6.9971054]
[1773690101877,0.00505511,2337.5,2336.5,6.9971054]
[1773690102678,7.00876242,2337.5,2336.5,6.9971054]
[1773690103376,7.00370731,2338.2,2336.9,6.9971054]
[1773690103679,7.2150881,2338.2,2336.9,6.9971054]
[1773690104578,7.22005099,2338.2,2337.1,6.9971054]
[1773690107983,7.00370731,2338.0,2337.1,6.9971054]
[1773690108778,0.00496289,2338.2,2337.3,6.9971054]
[1773690109484,7.0086702,2338.2,2337.3,6.9971054]
[1773690109684,7.0086702,2338.2,2337.4,0.2139]
[1773690109890,7.0086702,2338.2,2337.5,6.9971054]
[1773690113987,7.0086702,2338.2,2336.9,7.19321189]
[1773690116895,7.62507734,2338.0,2336.9,7.19321189]
[1773690117994,7.62507734,2337.8,2336.9,7.19321189]
[1773690118391,5.00915653,2337.7,2336.4,7.69359875]
[1773690118699,7.62507734,2337.6,2336.4,7.69359875]
[1773690118897,5.36898877,2338.0,2336.4,7.69359875]
[1773690118898,7.62507734,2337.4,2336.4,7.69359875]
[1773690120590,7.62507734,2337.9,2336.9,7.90753875]
[1773690120796,7.62507734,2338.1,2336.9,7.69359875]
[1773690121300,7.62507734,2338.1,2337.4,7.69359875]
[1773690121898,7.62507734,2338.7,2337.8,7.69359875]
[1773690122296,7.62507734,2338.5,2337.8,7.69359875]